fUSD/lending_fUSD_20240327
["ID","MTS","AMOUNT","RATE_DAILY","PERIOD"]
[320723693,1711535445744,-5114.35,0.00054794,120]
[320723694,1711535445754,-500.0,0.00054794,120]
[320723695,1711535445763,-1300.37,0.00054794,120]
[320723696,1711535445773,-1400.16,0.00054794,120]
[320723697,1711535445783,-1602.17,0.00054794,120]
[320723698,1711535445792,-500.0,0.00054794,120]
[320723699,1711535445802,-991.72,0.00054794,120]
[320723700,1711535445811,-500.0,0.00054794,120]
[320723701,1711535445821,-1510.54,0.00054794,120]
[320723702,1711535445830,-17160.48,0.00054794,120]
[320723703,1711535445839,-500.0,0.00054794,120]
[320723704,1711535445848,-6668.06,0.00054794,120]
[320723705,1711535445858,-500.0,0.00054794,120]
[320723706,1711535445868,-500.0,0.00054794,120]
[320723707,1711535445877,-1099.08,0.00054794,120]
[320723708,1711535445886,-1161.96,0.00054794,120]
[320723709,1711535445896,-500.0,0.00054794,120]
[320723710,1711535445905,-500.0,0.00054794,120]
[320723711,1711535445914,-500.0,0.00054794,120]
[320723712,1711535445923,-771.85,0.00054794,120]
[320723713,1711535445932,-500.0,0.00054794,120]
[320723714,1711535445941,-3835.99,0.00054794,120]
[320723715,1711535445951,-500.0,0.00054794,2]
[320723716,1711535445960,-2188.12,0.00054794,120]
[320723717,1711535445969,-502.78,0.00054794,120]
[320723718,1711535445979,-301.85,0.00054794,120]
[320723719,1711535445990,-2355.57,0.00054794,120]
[320723720,1711535445998,-500.0,0.00054794,120]
[320723721,1711535446007,-500.0,0.00054794,85]
[320723722,1711535446016,-624.4,0.00054794,120]
[320723723,1711535446025,-500.0,0.00054794,120]
[320723724,1711535446035,-4270.94,0.00054794,120]
[320723725,1711535446044,-2027.08,0.00054794,120]
[320723726,1711535446054,-500.0,0.00054794,120]
[320723727,1711535446064,-500.0,0.00054794,120]
[320723728,1711535446073,-1013.06,0.00054794,120]
[320723729,1711535446082,-500.0,0.00054794,120]
[320723730,1711535446092,-2044.55,0.00054794,120]
[320723731,1711535446101,-900.42,0.00054794,120]
[320723732,1711535446110,-957.6,0.00054794,120]
[320723733,1711535446120,-1278.57,0.00054794,120]
[320723734,1711535446133,-500.0,0.00054794,120]
[320723735,1711535446143,-4828.55,0.00054794,120]
[320723736,1711535446152,-500.0,0.00054794,120]
[320723737,1711535446163,-500.0,0.00054794,120]
[320723738,1711535446175,-2178.36,0.00054794,120]
[320723739,1711535446185,-500.0,0.00054794,120]
[320723740,1711535446195,-6846.65,0.00054794,120]
[320723741,1711535446208,-500.0,0.00054794,120]
[320723742,1711535446221,-500.0,0.00054794,120]
[320723743,1711535446231,-5243.53,0.00054794,120]
[320723744,1711535446242,-500.0,0.00054794,120]
[320723745,1711535446251,-5091.09,0.00054794,21]
[320723746,1711535446262,-3777.78,0.00054794,120]
[320723747,1711535446272,-4514.19,0.00054794,120]
[320723748,1711535446283,-3903.46,0.00054794,120]
[320723749,1711535446293,-1114.19,0.00054794,120]
[320723750,1711535446304,-500.0,0.00054794,120]
[320723751,1711535446313,-500.0,0.00054794,120]
[320723752,1711535446324,-500.0,0.00054794,120]
[320723753,1711535446333,-7201.42,0.00054794,120]
[320723754,1711535446343,-768.13,0.00054794,120]
[320723755,1711535446352,-1318.8,0.00054794,120]
[320723756,1711535446362,-8328.01,0.00054794,120]
[320723757,1711535446373,-1812.6,0.00054794,120]
[320723758,1711535446383,-503.62782108,0.00054794,120]
[320723759,1711535446395,-500.0,0.00054794,120]
[320723760,1711535446405,-500.0,0.00054794,120]
[320723761,1711535446415,-5304.29,0.00054794,120]
[320723762,1711535446425,-500.0,0.00054794,120]
[320723763,1711535446435,-500.0,0.00054794,120]
[320723764,1711535446446,-844.73,0.00054794,120]
[320723765,1711535446458,-500.0,0.00054794,120]
[320723766,1711535446468,-1408.58,0.00054794,120]
[320723767,1711535446478,-1565.77,0.00054794,120]
[320723768,1711535446490,-500.0,0.00054794,120]
[320723769,1711535446500,-500.0,0.00054794,120]
[320723770,1711535446510,-14253.16,0.00054794,120]
[320723771,1711535446520,-743.19,0.00054794,120]
[320723772,1711535446530,-508.45462986,0.00054794,120]
[320723773,1711535446539,-1954.14,0.00054794,120]
[320723774,1711535446549,-500.0,0.00054794,120]
[320723775,1711535446559,-2460.83,0.00054794,120]
[320723776,1711535446568,-17476.33,0.00054794,120]
[320723777,1711535446579,-931.2,0.00054794,120]
[320723778,1711535446588,-4543.29,0.00054794,120]
[320723779,1711535446597,-500.0,0.00054794,120]
[320723780,1711535446606,-1973.27,0.00054794,120]
[320723781,1711535446616,-500.0,0.00054794,120]
[320723782,1711535446625,-2365.9,0.00054794,120]
[320723783,1711535446635,-301.16255001,0.00054794,120]
[320723784,1711535446928,-198.83744999,0.00054794,120]
[320723785,1711535446938,-19292.32,0.00054794,120]
[320723786,1711535446948,-500.0,0.00054794,120]
[320723787,1711535446958,-6334.42,0.00054794,120]
[320723788,1711535446967,-603.48,0.00054794,120]
[320723789,1711535446977,-1141.26,0.00054794,120]
[320723790,1711535446990,-500.0,0.00054794,120]
[320723791,1711535446999,-1700.29,0.00054794,120]
[320723792,1711535447009,-2042.13,0.00054794,120]
[320723793,1711535447019,-503.88103075,0.00054794,120]
[320723794,1711535447029,-500.0,0.00054794,120]
[320723795,1711535447039,-6951.16,0.00054794,120]
[320723796,1711535447048,-399.64614064,0.00054794,5]
[320723797,1711535447058,-500.0,0.00054794,120]
[320723798,1711535447068,-10696.49,0.00054794,120]
[320723799,1711535447078,-2935.5,0.00054794,120]
[320723800,1711535447088,-502.38864528,0.00054794,120]
[320723801,1711535447097,-500.0,0.00054794,120]
[320723802,1711535447107,-848.2,0.00054794,120]
[320723803,1711535447118,-20468.59,0.00054794,120]
[320723804,1711535447130,-668.88,0.00054794,120]
[320723805,1711535447141,-2456.69,0.00054794,120]
[320723806,1711535447151,-1270.6,0.00054794,120]
[320723807,1711535447161,-2354.55,0.00054794,120]
[320723808,1711535447171,-808.3,0.00054794,120]
[320723809,1711535447182,-871.74,0.00054794,120]
[320723810,1711535447192,-1596.95,0.00054794,120]
[320723811,1711535447202,-500.0,0.00054794,120]
[320723812,1711535447215,-500.0,0.00054794,120]
[320723813,1711535447227,-500.0,0.00054794,120]
[320723814,1711535447406,-500.0,0.00054794,120]
[320723815,1711535447418,-2039.98,0.00054794,120]
[320723816,1711535447429,-500.0,0.00054794,120]
[320723817,1711535447440,-1139.26,0.00054794,120]
[320723818,1711535447452,-1052.02,0.00054794,120]
[320723819,1711535447462,-500.0,0.00054794,2]
[320723820,1711535447471,-1969.59,0.00054794,120]
[320723821,1711535447481,-500.0,0.00054794,120]
[320723822,1711535447491,-1978.39,0.00054794,120]
[320723823,1711535447502,-500.0,0.00054794,120]
[320723824,1711535447513,-2305.68,0.00054794,120]
[320723825,1711535447524,-614.9,0.00054794,120]
[320723826,1711535447535,-500.0,0.00054794,120]
[320723827,1711535447546,-727.64,0.00054794,120]
[320723828,1711535447555,-1396.73,0.00054794,120]
[320723829,1711535447566,-807.77,0.00054794,120]
[320723830,1711535447576,-500.0,0.00054794,120]
[320723831,1711535447586,-1184.91,0.00054794,120]
[320723832,1711535447596,-2742.96,0.00054794,120]
[320723833,1711535447605,-500.0,0.00054794,120]
[320723834,1711535447615,-500.0,0.00054794,120]
[320723835,1711535447626,-8803.17,0.00054794,120]
[320723836,1711535447636,-500.0,0.00054794,120]
[320723837,1711535447646,-500.0,0.00054794,120]
[320723838,1711535447656,-895.23,0.00054794,120]
[320723839,1711535447665,-500.0,0.00054794,120]
[320723840,1711535447674,-3098.01,0.00054794,120]
[320723841,1711535447684,-1143.05,0.00054794,120]
[320723842,1711535447694,-2755.03,0.00054794,120]
[320723843,1711535447703,-2584.8,0.00054794,120]
[320723844,1711535447713,-614.49,0.00054794,120]
[320723845,1711535447723,-500.0,0.00054794,120]
[320723846,1711535447734,-696.1,0.00054794,120]
[320723847,1711535447744,-1502.81,0.00054794,120]
[320723848,1711535447754,-500.0,0.00054794,120]
[320723849,1711535447763,-2320.35,0.00054794,120]
[320723850,1711535447773,-5775.78,0.00054794,120]
[320723851,1711535447782,-200.0,0.00054795,30]
[320723852,1711535447792,-1000.0,0.00054795,13]
[320723853,1711535447802,-1000.0,0.00054795,13]
[320723854,1711535447811,-1000.0,0.00054795,13]
[320723855,1711535447821,-1000.0,0.00054795,13]
[320723856,1711535447830,-1000.0,0.00054795,13]
[320723857,1711535447840,-1000.0,0.00054795,13]
[320723858,1711535447850,-1000.0,0.00054795,13]
[320723859,1711535447859,-1000.0,0.00054795,13]
[320723860,1711535447869,-1000.0,0.00054795,13]
[320723861,1711535447882,-1000.0,0.00054795,13]
[320723862,1711535447892,-1000.0,0.00054795,13]
[320723863,1711535447902,-1000.0,0.00054795,13]
[320723864,1711535447914,-1000.0,0.00054795,13]
[320723865,1711535447924,-1000.0,0.00054795,13]
[320723866,1711535447933,-1000.0,0.00054795,13]
[320723867,1711535447944,-1000.0,0.00054795,13]
[320723868,1711535447954,-1000.0,0.00054795,13]
[320723869,1711535447963,-1000.0,0.00054795,13]
[320723870,1711535447972,-1000.0,0.00054795,13]
[320723871,1711535447982,-1000.0,0.00054795,13]
[320723872,1711535447991,-1000.0,0.00054795,13]
[320723873,1711535448001,-1000.0,0.00054795,13]
[320723874,1711535448011,-1000.0,0.00054795,13]
[320723875,1711535448021,-1000.0,0.00054795,13]
[320723876,1711535448031,-1000.0,0.00054795,13]
[320723877,1711535448041,-1000.0,0.00054795,13]
[320723878,1711535448051,-1000.0,0.00054795,13]
[320723879,1711535448060,-1000.0,0.00054795,13]
[320723880,1711535448069,-973.0,0.00054795,13]
[320723881,1711535448078,-173.032719,0.00054798,108]
[320723882,1711535448087,-223.0,0.000548,74]
[320723883,1711535448096,-3449.0,0.000548,120]
[320723884,1711535448105,-150.0,0.00054842,14]
[320723885,1711535448114,-150.0,0.00054844,14]
[320723886,1711535448125,-150.0,0.00054859,14]
[320723887,1711535448137,-150.0,0.00054869,14]
[320723888,1711535448150,-150.0,0.00054877,14]
[320723889,1711535448161,-150.0,0.00054884,14]
[320723890,1711535448170,-150.0,0.00054889,14]
[320723891,1711535448179,-264.48164586,0.00054894,14]
[320723892,1711535448189,-173.032719,0.00054898,100]
[320723893,1711535448199,-150.0,0.00054923,14]
[320723894,1711535448209,-150.0,0.00054937,14]
[320723895,1711535448219,-150.0,0.00054941,14]
[320723896,1711535448229,-150.0,0.00054946,14]
[320723897,1711535448240,-150.0,0.0005498,14]
[320723898,1711535448249,-173.032719,0.00054998,101]
[320723899,1711535448258,-500.0,0.00055,7]
[320723900,1711535448267,-500.0,0.00055,7]
[320723901,1711535448276,-500.0,0.00055,7]
[320723902,1711535448286,-500.0,0.00055,7]
[320723903,1711535448294,-500.0,0.00055,7]
[320723904,1711535448304,-500.0,0.00055,7]
[320723905,1711535448313,-500.0,0.00055,7]
[320723906,1711535448322,-500.0,0.00055,7]
[320723907,1711535448331,-500.0,0.00055,7]
[320723908,1711535448340,-500.0,0.00055,7]
[320723909,1711535448350,-500.0,0.00055,7]
[320723910,1711535448359,-500.0,0.00055,7]
[320723911,1711535448368,-500.0,0.00055,7]
[320723912,1711535448378,-501.29,0.00055,7]
[320723913,1711535448387,-500.0,0.00055,7]
[320723914,1711535448396,-500.0,0.00055,7]
[320723915,1711535448409,-500.0,0.00055,7]
[320723916,1711535448419,-500.0,0.00055,7]
[320723917,1711535448429,-500.0,0.00055,7]
[320723918,1711535448438,-500.0,0.00055,7]
[320723919,1711535448448,-500.0,0.00055,7]
[320723920,1711535448459,-500.0,0.00055,7]
[320723921,1711535448468,-500.0,0.00055,7]
[320723922,1711535448480,-500.0,0.00055,7]
[320723923,1711535448492,-500.0,0.00055,7]
[320723924,1711535448502,-500.0,0.00055,7]
[320723925,1711535448512,-500.0,0.00055,7]
[320723926,1711535448523,-500.0,0.00055,7]
[320723927,1711535448533,-500.0,0.00055,7]
[320723928,1711535448543,-500.0,0.00055,7]
[320723929,1711535448552,-500.0,0.00055,7]
[320723930,1711535448562,-500.0,0.00055,7]
[320723931,1711535448571,-500.0,0.00055,7]
[320723932,1711535448581,-500.0,0.00055,7]
[320723933,1711535448590,-3803.95,0.00055,120]
[320723934,1711535448599,-500.0,0.00055,7]
[320723935,1711535448609,-500.0,0.00055,7]
[320723936,1711535448618,-500.0,0.00055,7]
[320723937,1711535448629,-500.0,0.00055,7]
[320723938,1711535448640,-500.0,0.00055,7]
[320723939,1711535448650,-500.0,0.00055,7]
[320723940,1711535448659,-500.0,0.00055,7]
[320723941,1711535448669,-500.0,0.00055,7]
[320723942,1711535448678,-496.69,0.00055,7]
[320723943,1711535448687,-2407.51516898,0.00055,14]
[320723944,1711535448697,-500.0,0.00055,7]
[320723945,1711535448707,-5150.0,0.00055,14]
[320723946,1711535448716,-975.65356972,0.00055,120]
[320723947,1711535448726,-10000.0,0.00055,14]
[320723948,1711535448737,-501.53,0.00055,14]
[320723949,1711535448747,-500.0,0.00055,14]
[320723950,1711535448757,-500.0,0.00055,14]
[320723951,1711535448766,-150.0,0.00055,22]
[320723952,1711535448776,-25843.338,0.00055,120]
[320723953,1711535448785,-150.0,0.00055015,14]
[320723954,1711535448794,-150.0,0.00055029,120]
[320723955,1711535448803,-150.0,0.00055029,120]
[320723956,1711535448813,-1609049.53642684,0.0005503,30]
[320723957,1711535448829,-1191.54432805,0.0005503,30]
[320723958,1711535448842,-14036.16924511,0.0005503,30]
[320723959,1711535448851,-151.0,0.0005503,120]
[320723960,1711535448861,-151.0,0.0005503,120]
[320723961,1711535448871,-292.160475,0.0005503,120]
[320723962,1711535448881,-151.0,0.0005503,7]
[320723963,1711535448890,-151.0,0.0005503,120]
[320723964,1711535448900,-153.409708,0.0005503,120]
[320723965,1711535448909,-151.0,0.0005503,14]
[320723966,1711535448919,-272.578601,0.0005503,120]
[320723967,1711535448928,-151.0,0.0005503,30]
[320723968,1711535448937,-151.0,0.0005503,120]
[320723969,1711535448946,-151.0,0.0005503,120]
[320723970,1711535448955,-151.0,0.0005503,120]
[320723971,1711535448964,-151.0,0.0005503,120]
[320723972,1711535448973,-163.57700477,0.0005504,120]
[320723973,1711535448983,-150.0,0.00055041,14]
[320723974,1711535448993,-150.0,0.00055049,14]
[320723975,1711535449002,-540.41,0.00055063,2]
[320723976,1711535449011,-150.0,0.00055065,14]
[320723977,1711535449020,-150.0,0.00055065,14]
[320723978,1711535449029,-150.0,0.00055067,120]
[320723979,1711535449038,-255.17859119,0.00055068,4]
[320723980,1711535449048,-2000.0,0.00055068,120]
[320723981,1711535449057,-459.75,0.00055068,120]
[320723982,1711535449066,-500.0,0.00055068,120]
[320723983,1711535449075,-500.0,0.00055068,120]
[320723984,1711535449085,-500.0,0.00055068,120]
[320723985,1711535449095,-500.0,0.00055068,120]
[320723986,1711535449104,-500.0,0.00055068,120]
[320723987,1711535449114,-500.0,0.00055068,120]
[320723988,1711535449124,-589.19,0.00055068,120]
[320723989,1711535449139,-167.8232297,0.00055068,120]
[320723990,1711535449152,-500.0,0.00055068,120]
[320723991,1711535449162,-510.78712304,0.00055068,120]
[320723992,1711535449171,-500.0,0.00055068,120]
[320723993,1711535449182,-500.0,0.00055068,120]
[320723994,1711535449191,-300.84,0.00055068,120]
[320723995,1711535449203,-1.5249617,0.00055068,120]
[320723996,1711535449223,-498.4750383,0.00055068,120]
[320723997,1711535449235,-500.0,0.00055068,120]
[320723998,1711535449246,-509.71309369,0.00055068,120]
[320723999,1711535449256,-500.0,0.00055068,120]
[320724000,1711535449268,-519.02749721,0.00055068,120]
[320724001,1711535449278,-270.1596115,0.00055068,120]
[320724002,1711535449293,-229.8403885,0.00055068,120]
[320724003,1711535449304,-500.0,0.00055068,120]
[320724004,1711535449315,-500.0,0.00055068,120]
[320724005,1711535449325,-500.0,0.00055068,120]
[320724006,1711535449334,-1018.65,0.00055068,120]
[320724007,1711535449343,-509.84,0.00055068,120]
[320724008,1711535449352,-500.0,0.00055068,120]
[320724009,1711535449362,-500.0,0.00055068,120]
[320724010,1711535449371,-500.0,0.00055068,120]
[320724011,1711535449380,-516.09,0.00055068,120]
[320724012,1711535449389,-500.0,0.00055068,120]
[320724013,1711535449399,-1156.51,0.00055068,120]
[320724014,1711535449408,-504.0924769,0.00055068,120]
[320724015,1711535449418,-500.0,0.00055068,120]
[320724016,1711535449432,-500.0,0.00055068,120]
[320724017,1711535449442,-511.70147426,0.00055068,120]
[320724018,1711535449453,-501.94377483,0.00055068,120]
[320724019,1711535449463,-500.0,0.00055068,120]
[320724020,1711535449473,-624.57,0.00055068,120]
[320724021,1711535449483,-500.0,0.00055068,120]
[320724022,1711535449492,-506.66993838,0.00055068,120]
[320724023,1711535449501,-324.35834413,0.00055068,120]
[320724024,1711535449598,-175.64165587,0.00055068,120]
[320724025,1711535449608,-627.08054439,0.00055068,120]
[320724026,1711535449617,-500.0,0.00055068,120]
[320724027,1711535449627,-500.0,0.00055068,120]
[320724028,1711535449636,-500.0,0.00055068,120]
[320724029,1711535449645,-500.0,0.00055068,120]
[320724030,1711535449655,-685.17,0.00055068,120]
[320724031,1711535449665,-500.0,0.00055068,120]
[320724032,1711535449676,-500.0,0.00055068,120]
[320724033,1711535449685,-635.46,0.00055068,120]
[320724034,1711535449695,-500.0,0.00055068,120]
[320724035,1711535449708,-500.0,0.00055068,120]
[320724036,1711535449718,-500.0,0.00055068,120]
[320724037,1711535449729,-500.0,0.00055068,120]
[320724038,1711535449739,-500.0,0.00055068,120]
[320724039,1711535449750,-256.51,0.00055068,120]
[320724040,1711535449759,-500.0,0.00055068,120]
[320724041,1711535449768,-500.0,0.00055068,120]
[320724042,1711535449778,-611.86572623,0.00055068,120]
[320724043,1711535449787,-500.0,0.00055068,120]
[320724044,1711535449798,-500.0,0.00055068,120]
[320724045,1711535449809,-500.0,0.00055068,2]
[320724046,1711535449819,-500.0,0.00055068,120]
[320724047,1711535449829,-500.0,0.00055068,120]
[320724048,1711535449839,-500.0,0.00055068,120]
[320724049,1711535449849,-500.0,0.00055068,120]
[320724050,1711535449858,-500.0,0.00055068,120]
[320724051,1711535449867,-500.0,0.00055068,120]
[320724052,1711535449877,-396.78,0.00055068,120]
[320724053,1711535449887,-554.82,0.00055068,120]
[320724054,1711535449897,-500.0,0.00055068,120]
[320724055,1711535449907,-500.0,0.00055068,120]
[320724056,1711535449917,-500.0,0.00055068,120]
[320724057,1711535449926,-500.0,0.00055068,120]
[320724058,1711535449935,-504.21,0.00055068,120]
[320724059,1711535449945,-500.0,0.00055068,120]
[320724060,1711535449955,-500.0,0.00055068,120]
[320724061,1711535449965,-727.09,0.00055068,120]
[320724062,1711535449976,-500.0,0.00055068,120]
[320724063,1711535449988,-500.0,0.00055068,120]
[320724064,1711535449998,-570.44,0.00055068,120]
[320724065,1711535450008,-510.96,0.00055068,120]
[320724066,1711535450017,-500.0,0.00055068,120]
[320724067,1711535450027,-500.0,0.00055068,120]
[320724068,1711535450037,-533.77,0.00055068,120]
[320724069,1711535450046,-500.0,0.00055068,120]
[320724070,1711535450058,-500.0,0.00055068,120]
[320724071,1711535450068,-500.0,0.00055068,120]
[320724072,1711535450078,-500.0,0.00055068,120]
[320724073,1711535450087,-150.0,0.00055068,120]
[320724074,1711535450097,-500.0,0.00055068,120]
[320724075,1711535450106,-500.0,0.00055068,120]
[320724076,1711535450115,-500.0,0.00055068,120]
[320724077,1711535450128,-500.0,0.00055068,120]
[320724078,1711535450138,-500.0,0.00055068,120]
[320724079,1711535450147,-500.0,0.00055068,120]
[320724080,1711535450157,-606.03,0.00055068,120]
[320724081,1711535450166,-647.34179941,0.00055068,120]
[320724082,1711535450175,-568.15,0.00055068,120]
[320724083,1711535450184,-500.0,0.00055068,120]
[320724084,1711535450194,-500.0,0.00055068,120]
[320724085,1711535450204,-500.0,0.00055068,120]
[320724086,1711535450216,-500.0,0.00055068,120]
[320724087,1711535450225,-500.0,0.00055068,120]
[320724088,1711535450235,-500.0,0.00055068,120]
[320724089,1711535450245,-500.0,0.00055068,120]
[320724090,1711535450255,-762.85,0.00055068,120]
[320724091,1711535450265,-500.0,0.00055068,120]
[320724092,1711535450274,-500.0,0.00055068,120]
[320724093,1711535450283,-500.0,0.00055068,120]
[320724094,1711535450293,-500.0,0.00055068,120]
[320724095,1711535450303,-500.0,0.00055068,120]
[320724096,1711535450313,-500.0,0.00055068,120]
[320724097,1711535450323,-1121.59,0.00055068,120]
[320724098,1711535450332,-774.01,0.00055068,120]
[320724099,1711535450341,-517.02,0.00055068,120]
[320724100,1711535450351,-500.0,0.00055068,120]
[320724101,1711535450360,-936.08,0.00055068,120]
[320724102,1711535450369,-574.02,0.00055068,120]
[320724103,1711535450379,-500.0,0.00055068,120]
[320724104,1711535450388,-500.0,0.00055068,120]
[320724105,1711535450398,-1608.3,0.00055068,120]
[320724106,1711535450407,-500.0,0.00055068,120]
[320724107,1711535450660,-338.23,0.00055068,120]
[320724108,1711535450670,-500.0,0.00055068,120]
[320724109,1711535450680,-500.0,0.00055068,120]
[320724110,1711535450689,-500.0,0.00055068,120]
[320724111,1711535450699,-500.0,0.00055068,120]
[320724112,1711535450708,-956.85,0.00055068,120]
[320724113,1711535450717,-575.81,0.00055068,120]
[320724114,1711535450726,-290.96,0.00055068,120]
[320724115,1711535450738,-500.0,0.00055068,120]
[320724116,1711535450747,-988.46,0.00055068,120]
[320724117,1711535450756,-301.00277439,0.00055068,120]
[320724118,1711535450766,-500.0,0.00055068,120]
[320724119,1711535450775,-500.0,0.00055068,120]
[320724120,1711535450784,-663.65,0.00055068,120]
[320724121,1711535450793,-480.873576,0.00055068,120]
[320724122,1711535450803,-500.0,0.00055068,120]
[320724123,1711535450813,-500.0,0.00055068,120]
[320724124,1711535450823,-672.63,0.00055068,120]
[320724125,1711535450832,-607.4,0.00055068,120]
[320724126,1711535450842,-559.91,0.00055068,120]
[320724127,1711535450851,-500.0,0.00055068,120]
[320724128,1711535450862,-500.0,0.00055068,120]
[320724129,1711535450871,-500.0,0.00055068,120]
[320724130,1711535450881,-606.32,0.00055068,120]
[320724131,1711535450890,-500.0,0.00055068,120]
[320724132,1711535450900,-500.0,0.00055068,120]
[320724133,1711535450909,-753.04,0.00055068,120]
[320724134,1711535450919,-500.0,0.00055068,120]
[320724135,1711535450928,-500.0,0.00055068,120]
[320724136,1711535450938,-500.0,0.00055068,120]
[320724137,1711535450947,-500.0,0.00055068,120]
[320724138,1711535450957,-394.96,0.00055068,120]
[320724139,1711535450966,-500.0,0.00055068,120]
[320724140,1711535450975,-380.65171191,0.00055068,120]
[320724141,1711535450986,-674.21,0.00055068,120]
[320724142,1711535450995,-567.54,0.00055068,120]
[320724143,1711535451005,-500.0,0.00055068,120]
[320724144,1711535451013,-515.57,0.00055068,120]
[320724145,1711535451023,-500.0,0.00055068,120]
[320724146,1711535451034,-1086.98,0.00055068,120]
[320724147,1711535451043,-500.0,0.00055068,120]
[320724148,1711535451052,-500.0,0.00055068,120]
[320724149,1711535451061,-500.0,0.00055068,120]
[320724150,1711535451070,-273.86012078,0.00055068,120]
[320724151,1711535451079,-500.0,0.00055068,120]
[320724152,1711535451089,-500.0,0.00055068,120]
[320724153,1711535451098,-500.0,0.00055068,120]
[320724154,1711535451107,-544.76,0.00055068,120]
[320724155,1711535451117,-500.0,0.00055068,120]
[320724156,1711535451129,-500.0,0.00055068,120]
[320724157,1711535451139,-647.54,0.00055068,120]
[320724158,1711535451149,-500.0,0.00055068,120]
[320724159,1711535451162,-261.04,0.00055068,120]
[320724160,1711535451172,-500.0,0.00055068,120]
[320724161,1711535451181,-1899.79,0.00055068,120]
[320724162,1711535451191,-500.0,0.00055068,120]
[320724163,1711535451201,-627.88,0.00055068,120]
[320724164,1711535451212,-500.0,0.00055068,120]
[320724165,1711535451224,-659.87,0.00055068,30]
[320724166,1711535451237,-691.61,0.00055068,120]
[320724167,1711535451250,-731.47,0.00055068,120]
[320724168,1711535451262,-302.27165639,0.00055068,120]
[320724169,1711535453065,-176.96877002,0.0003499,2]
[320724170,1711535453075,-176.96877002,0.00051175,2]
[320724171,1711535453085,-500.0,0.00054794,120]
[320724172,1711535453095,-78.54910654,0.00054794,120]
[320724173,1711535453106,-421.45089346,0.00054794,120]
[320724174,1711535453116,-500.0,0.00054794,120]
[320724175,1711535453128,-500.0,0.00054794,120]
[320724176,1711535453139,-170.43124179,0.00054794,120]
[320724177,1711535453153,-329.56875821,0.00054794,120]
[320724178,1711535453165,-197.72834361,0.00055068,120]
[320724179,1711535453174,-500.0,0.00055068,120]
[320724180,1711535453183,-414.98192928,0.00055068,120]
[320724181,1711535453205,-145.88807072,0.00055068,120]
[320724182,1711535453214,-315.08692928,0.00055068,120]
[320724183,1711535453247,-153.12534523,0.000509,120]
[320724184,1711535453257,-457.72307072,0.00055068,120]
[320724185,1711535453267,-500.0,0.00055068,120]
[320724186,1711535453276,-705.52,0.00055068,120]
[320724187,1711535453285,-500.0,0.00055068,120]
[320724188,1711535453295,-570.69,0.00055068,120]
[320724189,1711535453304,-622.17,0.00055068,120]
[320724190,1711535453313,-500.0,0.00055068,120]
[320724191,1711535453323,-502.85,0.00055068,120]
[320724192,1711535453333,-595.8,0.00055068,120]